bitfinex-derivatives/quotes_SOLF0:USTF0_20250817
["timestamp","ask_amount","ask_price","bid_price","bid_amount"]
[1755407909597,2.94,192.95,192.94,2.95]
[1755407914504,2.94,192.95,192.91,5.1799]
[1755407914802,2.94,192.95,192.93,2.95]
[1755407917799,2.94,192.94,192.92,5.1798]
[1755407918401,2.94,192.94,192.93,2.95]
[1755407926813,2.94,192.94,192.87,129.86378373]
[1755407926814,2.94,192.94,192.88,2.95]
[1755407927010,2.94,192.94,192.91,2.95]
[1755407927613,2.94,192.94,192.92,2.77]
[1755407929213,2.94,192.94,192.91,2.77]
[1755407931213,2.94,192.94,192.9,5.1801]
[1755407931409,2.94,192.94,192.92,2.77]
[1755407932418,3.99221441,192.93,192.92,2.77]
[1755407932616,3.05,192.92,192.89,7.9506]
[1755407932819,3.05,192.92,192.89,5.1806]
[1755407933010,3.05,192.92,192.9,2.77]
[1755407933616,3.05,192.92,192.9,7.9503]
[1755407934217,1.32345656,192.93,192.9,2.77]
[1755407934416,3.99514642,192.92,192.9,2.77]
[1755407934618,3.05,192.91,192.9,2.77]
[1755407936022,3.05,192.92,192.88,7.9507]
[1755407936215,4.37345656,192.95,192.88,2.77]
[1755407936418,3.05,192.93,192.89,1.32345656]
[1755407936619,3.99530835,192.92,192.91,5.1799]
[1755407936822,3.99530835,192.92,192.91,7.9499]
[1755407937119,7.04530835,192.92,192.91,2.77]
[1755407939518,7.04530835,192.92,192.88,5.1806]
[1755407939718,3.05,192.9,192.89,2.77]
[1755407941919,3.05,192.89,192.88,5.1806]
[1755407942128,3.05,192.89,192.87,7.9511]
[1755407942426,3.05,192.89,192.88,2.77]
[1755407943327,3.05,192.89,192.88,7.9509]
[1755407945934,3.05,192.89,192.87,5.1811]
[1755407946625,3.05,192.94,192.88,2.77]
[1755407946826,3.98124117,192.93,192.92,2.77]
[1755407947130,3.98124117,192.93,192.81,127.76]
[1755407947131,3.05,192.95,192.94,2.77]
[1755407947328,7.01537485,192.95,192.94,2.77]
[1755407947526,7.0155727,192.95,192.94,2.77]
[1755407950335,3.05,192.94,192.84,2.06695991]
[1755407950534,3.05,192.92,192.85,2.77]
[1755407950935,3.05,192.92,192.89,7.9504]
[1755407951131,3.05,192.92,192.9,2.77]
[1755407951829,3.05,192.98,192.9,2.77]
[1755407952024,3.05,192.96,192.93,2.77]
[1755407952228,3.05,192.94,192.91,2.77]
[1755407952428,3.05,192.94,192.92,7.9498]
[1755407952624,3.05,192.93,192.92,2.77]
[1755407953033,3.05,192.93,192.92,7.9498]
[1755407955235,3.05,193.0,192.95,2.77]
[1755407955539,3.05,192.98,192.94,5.1792]
[1755407955842,3.05,192.96,192.94,7.9492]
[1755407956140,7.01755292,192.95,192.94,7.9492]
[1755407957437,3.96755292,192.95,192.89,3.0]
[1755407957637,2.88,192.93,192.89,3.0]
[1755407958138,2.06695991,193.02,192.81,138.1253]
[1755407958139,2.88,192.98,192.87,3.0]
[1755407958332,2.88,192.96,192.87,3.0]
[1755407958533,2.88,192.94,192.87,3.0]
[1755407958734,2.88,192.92,192.87,3.0]
[1755407959036,2.88,192.9,192.89,3.0]
[1755407959431,2.88,192.9,192.89,8.1806]
[1755407959639,2.88,192.97,192.87,3.0]
[1755407959833,2.88,192.95,192.87,3.0]
[1755407960033,3.9677721,192.94,192.87,3.0]
[1755407960241,2.88,192.92,192.89,5.1804]
[1755407960437,2.88,192.92,192.81,127.7]
[1755407960438,3.96801114,192.91,192.84,3.0]
[1755407960631,3.96828136,192.9,192.84,3.0]
[1755407960838,2.88,192.88,192.87,5.1811]
[1755407961144,2.88,192.88,192.87,8.1811]
[1755407961336,2.88,192.9,192.87,8.1811]
[1755407961536,2.88,192.95,192.88,3.0]
[1755407961733,2.88,192.93,192.88,3.0]
[1755407961929,2.88,192.91,192.88,3.0]
[1755407962141,2.88,192.89,192.88,3.0]
[1755407963738,2.88,192.88,192.83,3.0]
[1755407964638,2.88,192.88,192.85,3.0]
[1755407965541,2.88,192.88,192.85,8.1816]
[1755407965947,2.88,192.87,192.86,3.0]
[1755407966138,2.88,192.87,192.86,8.1813]
[1755407969049,2.88,192.87,192.86,3.0]
[1755407969253,2.88,192.87,192.82,3.0]
[1755407969937,2.88,192.92,192.82,3.0]
[1755407970138,2.88,192.9,192.82,3.0]
[1755407970342,2.88,192.88,192.82,3.0]
[1755407970843,2.88,192.88,192.74,348.18]
[1755407971044,2.88,192.86,192.78,3.0]
[1755407972041,2.88,192.86,192.81,5.1825]
[1755407972242,2.88,192.86,192.82,3.0]
[1755407972839,2.88,192.86,192.81,8.1825]
[1755407973745,2.88,192.86,192.81,5.1825]
[1755407974146,2.88,192.89,192.78,3.0]
[1755407974347,2.88,192.87,192.78,3.0]
[1755407975046,2.88,192.87,192.83,5.1822]
[1755407975243,2.88,192.87,192.77,2.06695991]
[1755407975244,2.88,192.87,192.78,3.0]
[1755407975447,2.88,192.87,192.86,3.0]
[1755407976449,2.88,192.87,192.86,8.1814]
[1755407976850,2.88,192.87,192.86,5.1814]
[1755407977549,2.88,192.87,192.84,3.0]
[1755407978050,2.88,192.91,192.81,3.0]
[1755407978247,2.88,192.89,192.83,5.182]
[1755407978444,2.88,192.87,192.83,8.182]
[1755407978644,2.88,192.87,192.84,8.1819]
[1755407978846,2.88,192.87,192.81,3.0]
[1755407979346,2.88,192.87,192.85,5.1816]
[1755407979552,2.88,192.86,192.85,8.1816]
[1755407980352,2.88,192.95,192.85,3.0]
[1755407980550,2.88,192.93,192.85,3.0]
[1755407980747,2.88,192.91,192.86,5.1812]
[1755407981048,3.95829866,192.9,192.87,3.0]
[1755407981352,2.88,192.88,192.87,3.0]
[1755407981949,2.88,192.95,192.87,3.0]
[1755407982149,2.88,192.93,192.87,3.0]
[1755407982342,3.95819978,192.92,192.84,3.0]
[1755407982549,2.88,192.9,192.86,3.0]
[1755407982747,2.88,192.9,192.87,3.0]
[1755407986057,2.88,192.89,192.88,3.0]
[1755407986256,2.88,192.89,192.86,3.0]
[1755407986555,2.88,192.89,192.87,3.0]
[1755407987755,2.81,192.94,192.87,3.0]
[1755407987949,8.61928618,192.93,192.87,3.0]
[1755407988145,2.81,192.91,192.88,2.89]
[1755407988857,2.81,192.94,192.87,2.89]
[1755407989062,8.61928105,192.93,192.87,2.89]
[1755407989249,3.95831632,192.92,192.86,5.1814]
[1755407989454,2.81,192.9,192.88,2.89]
[1755407991062,2.81,192.95,192.89,2.89]
[1755407991263,2.81,192.94,192.89,2.89]
[1755407991564,2.81,192.94,192.91,5.1799]
[1755407991752,2.81,192.94,192.92,2.89]
[1755407991954,2.81,192.94,192.91,5.1799]
[1755407991955,2.81,192.94,192.93,2.89]
[1755407992156,2.81,192.94,192.93,8.0695]
[1755407992560,2.81,192.94,192.93,2.89]
[1755407992758,2.81,193.0,192.93,2.89]
[1755407992962,2.81,192.98,192.93,2.89]
[1755407993164,2.81,192.96,192.94,2.89]
[1755407994254,2.81,192.95,192.94,2.89]
[1755407995459,2.81,193.02,192.94,2.89]
[1755407995661,2.81,193.0,192.94,2.89]
[1755407995862,8.61555298,192.99,192.94,2.89]
[1755407996067,2.81,192.97,192.96,2.89]
[1755407996258,6.76669569,192.97,192.96,2.89]
[1755407996462,2.81,192.97,192.96,2.89]
[1755407996663,2.81,193.06,192.96,4.95695991]
[1755407996866,2.81,193.04,192.97,2.89]
[1755407997064,2.81,193.02,193.01,8.0673]
[1755407997263,6.76483781,193.02,193.01,8.0673]
[1755407997571,2.81,193.02,193.01,8.0673]
[1755407998366,2.81,193.02,193.01,2.89]
[1755407999269,2.81,193.02,192.98,8.068]
[1755407999967,2.81,193.02,192.96,2.06695991]
[1755407999968,2.81,193.02,193.0,2.89]
[1755408000264,2.06695991,193.06,192.93,2.06695991]
[1755408000571,2.81,193.02,192.91,2.89]
[1755408000762,2.81,193.0,192.91,2.89]
[1755408001568,2.81,193.0,192.9,2.06695991]
[1755408001770,2.81,193.0,192.91,2.89]
[1755408003063,3.94814264,192.99,192.91,2.89]
[1755408003265,2.81,192.98,192.93,5.1795]
[1755408003463,2.81,192.98,192.93,8.0695]
[1755408003673,2.81,192.98,192.93,2.89]
[1755408003872,2.81,192.98,192.88,2.89]
[1755408005369,2.81,192.98,192.9,5.1801]
[1755408005562,2.81,192.98,192.9,8.0701]
[1755408007068,2.81,192.98,192.91,5.18]
[1755408007266,5.73087082,193.05,192.81,348.2]
[1755408007267,6.01448075,192.97,192.81,348.2]
[1755408007467,6.75752084,192.96,192.82,4.95695991]
[1755408007664,2.06695991,192.97,192.82,4.95695991]
[1755408007665,2.81,192.94,192.87,5.1809]
[1755408007861,2.81,192.94,192.88,2.89]
[1755408008266,2.81,192.94,192.89,5.1806]
[1755408008467,2.81,192.94,192.9,2.89]
[1755408008668,2.81,192.94,192.85,2.06695991]
[1755408008875,2.81,192.94,192.89,2.89]
[1755408009568,2.81,192.93,192.92,5.1796]
[1755408009770,2.81,192.93,192.92,8.0696]
[1755408011272,2.81,192.99,192.88,2.06695991]
[1755408011577,2.81,192.99,192.93,2.89]
[1755408012170,2.81,192.99,192.94,5.1792]
[1755408012376,2.81,192.99,192.93,2.89]
[1755408013170,2.81,192.99,192.93,8.0695]
[1755408013368,3.94680983,192.98,192.93,8.0695]
[1755408013570,2.81,192.99,192.93,8.0695]
[1755408013770,2.81,192.97,192.93,8.0695]
[1755408015284,2.81,192.97,192.84,2.89]
[1755408015473,2.81,192.95,192.84,2.89]
[1755408015668,2.81,192.93,192.84,2.89]
[1755408015871,2.81,192.93,192.84,8.0717]
[1755408016072,3.94786036,192.92,192.84,8.0717]
[1755408016278,2.81,192.91,192.84,2.89]
[1755408016773,2.81,192.91,192.85,5.1814]
[1755408018887,2.81,192.91,192.86,5.1813]
[1755408019367,2.81,192.91,192.86,8.1813]
[1755408022583,2.81,192.91,192.86,5.1813]
[1755408022782,2.81,192.91,192.87,3.0]
[1755408022984,2.81,192.91,192.88,3.0]
[1755408023477,2.91,192.96,192.89,3.0]
[1755408023675,2.91,192.94,192.9,3.0]
[1755408023875,2.91,192.94,192.85,2.06695991]
[1755408024083,2.91,192.94,192.88,3.0]
[1755408024281,2.91,192.94,192.88,8.1807]
[1755408024781,3.95061737,192.93,192.88,8.1807]
[1755408024982,2.91,192.92,192.89,3.0]
[1755408025381,2.91,192.92,192.89,8.1806]
[1755408025882,2.91,192.92,192.89,3.0]
[1755408026376,2.91,192.92,192.88,5.1808]
[1755408026684,2.91,192.92,192.88,8.1808]
[1755408027078,2.91,192.92,192.89,3.0]
[1755408027885,2.91,192.92,192.89,8.1806]
[1755408028180,2.91,192.92,192.83,3.0]
[1755408028585,2.91,192.92,192.82,2.06695991]
[1755408028781,2.91,192.92,192.85,3.0]
[1755408029188,2.91,192.92,192.87,5.1811]
[1755408029383,2.91,192.92,192.83,3.0]
[1755408030986,2.91,192.96,192.89,3.0]
[1755408031187,2.91,192.94,192.89,3.0]
[1755408031491,2.91,192.92,192.87,8.1811]
[1755408031785,2.91,192.92,192.88,3.0]
[1755408032581,2.91,192.92,192.87,5.1811]
[1755408032884,2.91,192.92,192.89,3.0]
[1755408033282,2.91,192.92,192.88,3.0]
[1755408034291,2.91,192.92,192.89,3.0]
[1755408035081,2.91,192.92,192.82,2.06695991]
[1755408035279,2.91,192.92,192.9,3.0]
[1755408035684,2.91,192.92,192.88,5.1809]
[1755408035880,2.91,192.96,192.9,3.0]
[1755408036089,2.91,192.96,192.89,5.1806]
[1755408036090,2.91,192.94,192.83,3.0]
[1755408036281,3.94398714,192.93,192.83,3.0]
[1755408036477,2.91,192.92,192.83,3.0]
[1755408036681,2.91,192.92,192.86,5.1812]
[1755408036883,2.91,192.92,192.87,3.0]
[1755408037286,2.91,192.92,192.84,3.0]
[1755408037494,3.94405106,192.91,192.84,3.0]
[1755408037690,2.91,192.9,192.84,3.0]
[1755408038191,2.91,192.9,192.8,3.0]
[1755408038495,2.91,192.9,192.83,3.0]
[1755408038790,2.91,192.9,192.88,5.1807]
[1755408038990,2.91,192.9,192.89,3.0]
[1755408040691,2.91,192.9,192.88,5.1807]
[1755408040888,2.91,192.9,192.88,3.0]
[1755408045091,2.91,192.89,192.88,8.1808]
[1755408046500,2.91,192.89,192.83,3.0]
[1755408048001,2.91,192.89,192.79,127.54]
[1755408048300,2.9,192.87,192.8,3.06]
[1755408049401,2.9,192.87,192.84,3.06]
[1755408049601,2.9,192.87,192.85,3.06]
[1755408055011,2.9,192.93,192.84,5.1819]
[1755408055304,2.9,192.91,192.84,5.1819]
[1755408055497,8.58287684,192.9,192.84,5.1819]
[1755408055696,2.9,192.88,192.84,8.2419]
[1755408055905,3.95221004,192.87,192.84,8.2419]
[1755408056107,7.79783073,192.94,192.84,8.2419]
[1755408056309,2.9,192.92,192.84,8.2419]
[1755408056501,2.9,192.9,192.84,8.2419]
[1755408056701,2.9,192.88,192.85,3.06]
[1755408057001,2.9,192.86,192.85,3.06]
[1755408057198,6.85366685,192.86,192.8,3.06]
[1755408057405,2.9,192.86,192.8,3.06]
[1755408057802,2.9,192.86,192.83,5.1823]
[1755408058001,2.9,192.86,192.83,8.2423]
[1755408058198,2.9,192.85,192.84,3.06]
[1755408058510,2.9,192.86,192.85,3.06]
[1755408059111,6.8545625,192.86,192.84,3.06]
[1755408059305,2.9,192.86,192.84,3.06]
[1755408059806,2.06695991,192.91,192.84,3.06]
[1755408060006,2.9,192.85,192.84,3.06]
[1755408060403,5.73087082,192.95,192.82,2.06695991]
[1755408060609,5.73087082,192.95,192.76,127.52]
[1755408060610,3.96688052,192.94,192.89,3.06]
[1755408060804,2.9,192.95,192.89,3.06]
[1755408061007,2.9,192.93,192.88,2.06695991]
[1755408061202,2.9,192.91,192.87,3.06]
[1755408061410,2.9,192.91,192.87,8.2412]
[1755408061612,2.9,192.91,192.88,3.06]
[1755408062516,2.9,192.89,192.87,5.1812]
[1755408062715,2.9,192.88,192.87,8.2412]
[1755408063018,2.9,192.95,192.87,8.2412]
[1755408063215,2.9,192.93,192.87,5.1812]
[1755408063408,2.9,192.91,192.89,3.06]
[1755408063615,2.9,192.9,192.89,3.06]
[1755408064211,2.9,192.89,192.86,135.7614]
[1755408064408,2.9,192.95,192.86,135.7614]
[1755408064714,2.9,192.93,192.87,5.1811]
[1755408064914,3.93525188,192.92,192.87,5.1811]
[1755408065110,3.93525188,192.91,192.88,3.06]
[1755408065316,2.9,192.89,192.87,5.1811]
[1755408065508,2.9,192.89,192.88,5.1809]
[1755408065704,6.8353518,192.89,192.88,5.1809]
[1755408066514,2.9,192.88,192.86,135.7612]
[1755408066710,2.9,192.87,192.86,135.7612]
[1755408066906,2.9,192.87,192.86,8.2412]
[1755408068316,2.9,192.87,192.85,5.1817]
[1755408068718,2.9,192.86,192.85,8.2417]
[1755408069716,2.06695991,192.96,192.85,5.1817]
[1755408069918,2.9,192.87,192.86,3.06]
[1755408071819,7.79783073,192.96,192.86,5.1814]
[1755408072016,11.36183652,192.95,192.87,3.06]
[1755408072225,2.9,192.93,192.87,3.06]
[1755408072412,2.9,192.91,192.87,3.06]
[1755408072613,3.93575616,192.9,192.88,3.06]
[1755408072816,2.9,192.89,192.88,3.06]
[1755408073213,2.06695991,192.96,192.88,3.06]
[1755408073419,2.9,192.9,192.89,3.06]
[1755408073621,6.83581894,192.9,192.89,3.06]
[1755408074218,2.9,192.93,192.89,3.06]
[1755408074416,2.9,192.93,192.9,5.1802]
[1755408074722,2.9,192.92,192.91,3.06]
[1755408075420,2.9,192.92,192.91,8.2401]
[1755408078225,2.98,192.91,192.88,3.06]
[1755408078524,2.98,192.9,192.88,3.06]
[1755408078716,2.98,192.9,192.89,5.1807]
[1755408078918,2.98,192.9,192.89,8.2407]
[1755408079116,2.98,192.9,192.89,5.1807]
[1755408079819,2.98,192.9,192.89,8.2407]
[1755408085227,2.98,192.9,192.89,5.1807]
[1755408085429,2.98,192.9,192.89,8.2407]
[1755408086823,2.06695991,192.96,192.83,2.06695991]
[1755408087019,2.98,192.94,192.86,2.06695991]
[1755408087220,3.93259274,192.93,192.87,3.06]
[1755408087425,2.98,192.91,192.87,3.06]
[1755408087625,2.98,192.9,192.89,5.1805]
[1755408088128,2.98,192.9,192.89,8.2405]
[1755408091129,2.98,192.9,192.86,3.06]
[1755408091629,2.98,192.88,192.87,5.1812]
[1755408091833,2.98,192.88,192.87,8.2412]
[1755408092037,2.98,192.95,192.87,3.06]
[1755408092333,2.98,192.93,192.87,3.06]
[1755408092530,2.98,192.91,192.89,3.06]
[1755408094036,2.98,192.9,192.89,3.06]
[1755408095835,6.92351346,192.9,192.88,8.2407]
[1755408096031,2.98,192.9,192.88,8.2407]
[1755408096227,2.98,192.9,192.88,5.1807]
[1755408096432,2.98,192.9,192.87,5.1811]
[1755408096829,2.98,192.9,192.87,8.2411]
[1755408097029,2.98,192.9,192.88,5.1809]
[1755408097233,2.98,192.9,192.88,8.2409]
[1755408099239,2.98,192.9,192.88,5.1809]
[1755408100040,2.98,192.9,192.88,8.2409]
[1755408101133,2.06695991,192.96,192.88,8.2409]
[1755408101338,2.98,192.89,192.88,8.2409]
[1755408101541,5.73087082,192.98,192.84,2.06695991]
[1755408101739,11.35142537,192.97,192.84,2.06695991]
[1755408101944,2.98,192.93,192.91,5.1799]
[1755408102135,6.92635063,192.92,192.88,3.06]
[1755408102334,2.98,192.92,192.88,3.06]
[1755408102941,7.79783073,192.99,192.92,5.1797]
[1755408103144,8.45361853,192.98,192.9,3.06]
[1755408103341,8.45361853,192.97,192.9,3.06]
[1755408103535,8.45361853,192.96,192.9,3.06]
[1755408103738,3.94635063,192.95,192.9,3.06]
[1755408104042,2.98,192.93,192.9,3.06]
[1755408104242,2.98,192.91,192.9,3.06]
[1755408104435,6.92635063,192.91,192.9,3.06]
[1755408105230,6.92635063,192.91,192.9,8.2404]
[1755408106446,2.98,192.91,192.9,8.2404]
[1755408113250,2.93,192.93,192.9,3.06]
[1755408113450,6.87801457,192.92,192.9,3.06]
[1755408113641,2.93,192.92,192.9,3.06]
[1755408113849,2.93,192.92,192.87,2.77]
[1755408114147,2.93,192.92,192.91,5.1801]
[1755408114348,6.8782307,192.92,192.91,7.9501]
[1755408114653,2.93,192.92,192.91,7.9501]
[1755408117546,2.93,192.96,192.93,2.77]
[1755408117742,3.94869886,192.95,192.94,4.09307367]
[1755408118143,2.93,192.97,192.96,7.9488]
[1755408118344,6.86177947,192.97,192.96,9.27187367]
[1755408120049,2.93,192.97,192.96,9.27187367]
[1755408120243,2.93,193.04,192.96,1.32307367]
[1755408120449,2.93,193.02,193.0,2.77]
[1755408120650,6.85733865,193.01,193.0,2.77]
[1755408120847,6.85733865,193.01,193.0,7.9477]
[1755408121444,6.85733865,193.01,193.0,5.1777]
[1755408122055,6.85733865,193.01,192.98,2.77]
[1755408122056,3.92733865,193.01,192.99,5.1779]
[1755408122258,2.93,193.0,192.99,5.1779]
[1755408124051,2.93,193.0,192.99,7.9479]
[1755408124650,2.93,193.0,192.99,5.1779]
[1755408125260,2.93,193.0,192.97,2.77]
[1755408125261,2.93,193.0,192.98,5.1782]
[1755408125558,2.93,193.0,192.95,2.77]
[1755408125760,2.93,193.0,192.96,5.1786]
[1755408125952,2.93,193.0,192.96,7.9486]
[1755408126350,2.93,193.0,192.97,7.9485]
[1755408128961,2.93,193.0,192.97,5.1785]
[1755408129161,2.93,193.0,192.98,2.77]
[1755408129961,2.93,193.0,192.99,2.77]
[1755408130857,2.93,193.0,192.99,7.9478]
[1755408133567,2.93,193.07,193.0,5.1776]
[1755408133763,2.93,193.05,193.01,2.77]
[1755408133959,2.93,193.03,193.01,2.77]
[1755408134963,2.93,193.03,193.01,5.1774]
[1755408135567,2.93,193.03,193.0,5.1777]
[1755408137362,2.93,193.03,193.01,5.1774]
[1755408138869,2.93,193.03,193.02,5.1772]
[1755408139066,2.93,193.03,192.99,2.77]
[1755408139265,2.93,193.03,193.0,3.05]
[1755408139468,2.06537203,193.08,193.0,8.2276]
[1755408139667,3.91053934,193.07,193.0,8.2276]
[1755408139865,2.92,193.03,193.01,3.05]
[1755408140069,2.92,193.09,193.0,5.1776]
[1755408140270,2.92,193.07,193.0,5.1776]
[1755408140469,3.91079273,193.06,193.0,5.1776]
[1755408140674,2.92,193.04,193.0,8.2276]
[1755408142070,2.92,193.07,193.0,3.05]
[1755408142269,2.92,193.05,193.02,3.05]
[1755408142462,2.92,193.05,193.02,5.1771]
[1755408142664,2.92,193.05,193.03,3.05]
[1755408142973,1.32188832,193.1,193.01,1.32188832]
[1755408142974,2.92,193.04,193.01,1.32188832]
[1755408143169,2.92,193.04,193.02,5.1772]
[1755408143370,2.92,193.04,193.03,3.05]
[1755408146673,2.92,193.04,193.02,5.1772]
[1755408146874,2.92,193.04,193.01,8.2274]
[1755408147176,2.92,193.04,193.01,3.05]
[1755408147973,2.92,193.04,193.01,8.2274]
[1755408148171,2.92,193.04,193.02,3.05]
[1755408149877,2.92,193.04,193.01,8.2274]
[1755408151579,2.92,193.11,193.01,5.1774]
[1755408151779,135.11569006,193.12,192.98,2.06481924]
[1755408151780,2.92,193.09,193.02,8.2271]
[1755408151981,3.92397261,193.08,193.03,3.05]
[1755408152281,2.92,193.06,193.03,3.05]
[1755408152484,2.92,193.04,193.03,3.05]
[1755408157195,2.06481924,193.1,193.02,5.1771]
[1755408157393,8.4052452,193.09,193.02,8.2271]
[1755408157693,2.92,193.07,193.02,8.2271]
[1755408157883,2.92,193.05,193.02,8.2271]
[1755408158284,2.92,193.03,193.02,8.2271]
[1755408159091,2.92,193.03,193.02,5.1771]
[1755408159500,2.92,193.03,193.01,3.05]
[1755408160000,2.92,193.09,192.99,3.05]
[1755408160199,2.92,193.07,192.99,3.05]
[1755408160392,2.92,193.05,193.0,5.1776]
[1755408160598,2.92,193.03,193.01,3.05]
[1755408160797,6.85061803,193.02,193.01,3.05]
[1755408161800,2.92,193.02,193.01,3.05]
[1755408162600,6.85559732,193.02,193.01,3.05]
[1755408167799,6.85559732,193.02,193.01,8.2274]
[1755408169806,3.01,193.01,192.95,1.32187343]
[1755408170000,3.01,192.99,192.95,4.37187343]
[1755408170197,3.01,192.97,192.95,4.37187343]
[1755408170602,3.01,192.97,192.95,1.32187343]
[1755408170803,3.01,192.97,192.96,3.05]
[1755408172709,1.32187343,193.03,192.95,6.50087343]
[1755408172911,8.45625997,193.02,192.95,9.55087343]
[1755408173206,3.01,193.0,192.95,9.55087343]
[1755408173401,3.93846754,192.99,192.96,3.05]
[1755408173600,1.32187343,193.03,192.96,3.05]
[1755408173601,3.01,192.97,192.96,3.05]
[1755408178706,3.01,192.97,192.89,3.05]
[1755408179002,1.32187343,192.93,192.87,9.55297343]
[1755408179405,3.01,192.91,192.88,3.05]
[1755408181307,3.01,192.95,192.85,5.1817]
[1755408181607,3.01,192.92,192.8,2.06825772]
[1755408181805,3.01,192.9,192.81,3.05]
[1755408182006,3.01,192.88,192.81,3.05]
[1755408182201,3.01,192.88,192.82,8.2325]
[1755408183117,3.01,192.88,192.83,5.1823]
[1755408183904,3.01,192.88,192.83,8.2323]
[1755408184216,3.01,192.88,192.83,5.1823]
[1755408184711,3.01,192.88,192.83,8.2323]
[1755408186715,3.01,192.88,192.84,3.05]
[1755408189111,3.01,192.92,192.81,3.05]
[1755408189307,3.01,192.92,192.84,3.05]
[1755408190020,3.01,192.92,192.84,8.2318]
[1755408190214,3.01,192.92,192.8,2.06825772]
[1755408190420,3.01,192.92,192.83,3.05]
[1755408190716,3.98641412,192.91,192.83,3.05]
[1755408190912,2.06825772,192.93,192.83,3.05]
[1755408190913,3.01,192.9,192.83,3.05]
[1755408193021,3.01,192.9,192.83,8.2322]
[1755408193316,3.01,192.9,192.84,3.05]
[1755408193514,3.01,192.9,192.85,5.1815]
[1755408193715,3.01,192.9,192.84,3.05]
[1755408194220,3.01,192.9,192.85,3.05]
[1755408195318,3.01,192.9,192.86,3.05]
[1755408195621,3.01,192.9,192.87,3.05]
[1755408196722,3.01,192.9,192.81,3.05]
[1755408198028,3.01,192.9,192.83,5.1821]
[1755408198219,3.01,192.9,192.84,3.05]
[1755408198717,3.01,192.9,192.85,3.05]
[1755408198918,3.01,192.9,192.86,3.05]
[1755408200224,3.98364818,192.89,192.8,3.05]
[1755408200523,2.81,192.88,192.8,3.05]
[1755408201022,2.81,192.88,192.81,3.05]
[1755408201723,2.81,192.88,192.81,8.2328]
[1755408201925,2.81,192.88,192.82,3.05]
[1755408205220,3.98446746,192.87,192.82,3.05]
[1755408205420,2.81,192.86,192.82,3.05]
[1755408206526,2.06825772,192.92,192.82,3.05]
[1755408206826,2.81,192.9,192.82,2.06825772]
[1755408207023,2.81,192.9,192.83,3.05]
[1755408207524,2.81,192.9,192.82,2.06825772]
[1755408207525,2.81,192.9,192.85,3.05]
[1755408208727,2.81,192.9,192.84,5.182]